Workbook

Sheet Operating Lines
A1: Open Steam Data
A2: F = | B2: 100.0 | D2: Specifications
A3: z = | B3: 0.200 | M3: D = | N3: =+B10 -> 25.3
A4: R = | B4: 2.00 | M4: xD = | N4: =+B6 -> 0.750
A5: % V = | B5: 0.5
A6: xD = | B6: 0.750
A7: xB = | B7: 0.010
C8: V = | D8: =(1+B4)*B10 -> 76.0
A9: B = | B9: 100.6 | C9: L = | D9: =B4*B10 -> 50.6 | H9: V = | I9: =+D8 -> 76.0 | M9: L = | N9: =+D9 -> 50.6
A10: D = | B10: 25.3 | C10: V' = | D10: =+B11 -> 26.0
A11: S = | B11: 26.0 | C11: L ' = | D11: =+D9+B2*(1-B5) -> 100.6
F12: x | G12: y | H12: F = | I12: =+B2 -> 100.0
A13: B MB: | B13: =B2*B3-B9*B7-B10*B6 -> 0.00000000 | C13: TOL | D13: m = | E13: =+D9/D8 -> 0.667 | F13: =+B6 -> 0.750 | G13: =+B6 -> 0.750 | H13: z = | I13: 0.2
A14: T MB: | B14: =B2+B11-B9-B10 -> -0.00000063 | D14: b = | E14: =B6*B10/D8 -> 0.250 | F14: 0.090 | G14: 0.310 | H14: % V = | I14: =+B5 -> 0.5
A15: PS: | B15: =+B11+B2*B5-(1+B4)*B10 -> 0.00001403
A16: TOL: | B16: =+E13*F14+E14-G14 -> -0.00000000 | C16: Feed | D16: m = | E16: =-B5/(1-B5) -> -1.000 | F16: 0.000 | G16: =+E16*F16+E17 -> 0.400 | H16: V' = | I16: =+D10 -> 26.0 | M16: L' = | N16: =+D11 -> 100.6
A17: Feed Line: | B17: =+(G14-B3)/(F14-B3)+B5/(1-B5) -> -0.00000006 | D17: b = | E17: =+B3*(B5+(1-B5))/(1-B5) -> 0.400 | F17: =+B3 -> 0.200 | G17: =+E16*F17+E17 -> 0.200
C19: BOL | D19: m = | E19: =+D11/D10 -> 3.875 | F19: =+B7 -> 0.010 | G19: 0.000
D20: b = | E20: =-B7*B9/D10 -> -0.039 | F20: =+F14 -> 0.090 | G20: =+G14 -> 0.310
A22: Instructions: | H22: S = | I22: =+B11 -> 26.0 | M22: B = | N22: =+B9 -> 100.6
A23: 1. Input F, z, R, %V, xD, xB | M23: xB = | N23: =+B7 -> 0.010
A24: 2. Run Solver. It will find the operating lines.
A25: 3. The operating lines automatically generate on next page.
A26: 4. Print MT (Op Lines) for a graphical solution.
A27: 5. Lewis can be used to generate the steps. Experts only!

Sheet Lewis
A1: Open Steam Distillation of Ethanol/Water
H2: P (mm Hg) = | I2: 760 | K2: Antoine Constants
A3: x | B3: y | C3: T | D3: Wilson Equation | G3: pB | H3: pT | I3: BP | L3: A | M3: B | N3: C | O3: D
A4: (mol B/mol) | B4: (mol B/mol) | C4: (oC) | D4: F | E4: gE | F4: gW | G4: (mm Hg) | H4: (mm Hg) | I4: (mm Hg) | K4: Ethanol | L4: 8.112 | M4: 1592.864 | N4: 226.184 | O4: 0.2002
A5: =+'Operating Lines'!B7 -> 0.010 | B5: 0.000 | C5: 100.0 | D5: =+$O$4/(A5+(1-A5)*$O$4)-$O$5/((1-A5)+A5*$O$5) -> 0.1444 | E5: =+EXP(-LN(A5+$O$4*(1-A5))+(1-A5)*D5) -> 5.541 | F5: =+EXP(-LN((1-A5)+$O$5*A5)-A5*D5) -> 1.000 | G5: =10^($L$4-$M$4/(C5+$N$4)) -> 1694 | H5: =10^($L$5-$M$5/($N$5+C5)) -> 760 | K5: Water | L5: 7.967 | M5: 1668.210 | N5: 228.000 | O5: 0.8156
A6: =+A5 -> 0.010 | B6: =+A6*E6*G6/I2 -> 0.111 | C6: 97.0 | D6: =+$O$4/(A6+(1-A6)*$O$4)-$O$5/((1-A6)+A6*$O$5) -> 0.1444 | E6: =+EXP(-LN(A6+$O$4*(1-A6))+(1-A6)*D6) -> 5.541 | F6: =+EXP(-LN((1-A6)+$O$5*A6)-A6*D6) -> 1.000 | G6: =10^($L$4-$M$4/(C6+$N$4)) -> 1526 | H6: =10^($L$5-$M$5/($N$5+C6)) -> 682 | I6: =$I$2-A6*G6*E6-(1-A6)*H6*F6 -> 0.00000
A7: =+(B7-$C$29)/$C$28 -> 0.039 | B7: =+B6 -> 0.111 | C7: 97.0 | D7: =+$O$4/(A7+(1-A7)*$O$4)-$O$5/((1-A7)+A7*$O$5) -> 0.0446 | E7: =+EXP(-LN(A7+$O$4*(1-A7))+(1-A7)*D7) -> 4.515 | F7: =+EXP(-LN((1-A7)+$O$5*A7)-A7*D7) -> 1.005 | G7: =10^($L$4-$M$4/(C7+$N$4)) -> 1526 | H7: =10^($L$5-$M$5/($N$5+C7)) -> 682
A8: =+A7 -> 0.039 | B8: =+A8*G8*E8/760 -> 0.289 | C8: 91.6 | D8: 0.0446 | E8: 4.515 | F8: 1.005 | G8: 1259 | H8: 559 | I8: =$I$2-A8*G8*E8-(1-A8)*H8*F8 -> -0.00004 | K8: Equilibrium Calculations/Leaving Streams
A9: =+(B9-$C$29)/$C$28 -> 0.085 | B9: =+B8 -> 0.289 | C9: 91.4 | D9: -0.0813 | E9: 3.464 | F9: 1.023 | G9: 1251 | H9: 555 | K9: Operating Line Calculations/Passing Streams
A10: =+A9 -> 0.085 | B10: 0.415 | C10: 87.3 | D10: -0.0813 | E10: 3.464 | F10: 1.023 | G10: 1075 | H10: 475 | I10: -0.00012
A11: =+(B11-$C$23)/$C$22 -> 0.248 | B11: =+B10 -> 0.415 | C11: 89.2 | D11: -0.3520 | E11: 1.927 | F11: 1.143 | G11: 1154 | H11: 511
A12: =+A11 -> 0.248 | B12: 0.558 | C12: 82.3 | D12: -0.3520 | E12: 1.927 | F12: 1.143 | G12: 890 | H12: 390 | I12: -0.00013
A13: =+(B13-$C$23)/$C$22 -> 0.463 | B13: =+B12 -> 0.558 | C13: 87.6 | D13: -0.5406 | E13: 1.311 | F13: 1.404 | G13: 1088 | H13: 480
A14: =+A13 -> 0.463 | B14: 0.648 | C14: 80.0 | D14: -0.5406 | E14: 1.311 | F14: 1.404 | G14: 811 | H14: 355 | I14: -0.00008
A15: =+(B15-$C$23)/$C$22 -> 0.597 | B15: =+B14 -> 0.648 | C15: 86.4 | D15: -0.6210 | E15: 1.149 | F15: 1.628 | G15: 1040 | H15: 459
A16: =+A15 -> 0.597 | B16: 0.705 | C16: 79.0 | D16: -0.6210 | E16: 1.149 | F16: 1.628 | G16: 782 | H16: 341 | I16: -0.00006
A17: =+(B17-$C$23)/$C$22 -> 0.683 | B17: =+B16 -> 0.705 | C17: 85.5 | D17: -0.6649 | E17: 1.085 | F17: 1.802 | G17: 1005 | H17: 442
A18: =+A17 -> 0.683 | B18: 0.748 | C18: 78.5 | D18: -0.6649 | E18: 1.085 | F18: 1.802 | G18: 767 | H18: 335 | I18: -0.00004
A19: =+(B19-$C$23)/$C$22 -> 0.748 | B19: =+B18 -> 0.748 | C19: 84.8 | D19: -0.6952 | E19: 1.051 | F19: 1.950 | G19: 977 | H19: 430
D21: x | E21: y | F21: Instructions: | G21: 1) Select the pressure. Most examples are for 1 atm = 760 mm Hg.
A22: TOL | B22: m = | C22: =+'Operating Lines'!E13 -> 0.667 | D22: =+'Operating Lines'!F13 -> 0.750 | E22: =+'Operating Lines'!G13 -> 0.750 | G22: 2) Start with page "Operating Lines". Input all relevant data and run Solver
B23: b = | C23: =+'Operating Lines'!E14 -> 0.250 | D23: =+'Operating Lines'!F14 -> 0.090 | E23: =+'Operating Lines'!G14 -> 0.310 | G23: to complete the overall mole balances. All flow rates are auto copied to this page.
G24: 3) The following are set and don't need to be changed:
A25: Feed | B25: m = | C25: =+'Operating Lines'!E16 -> -1.000 | D25: =+'Operating Lines'!F16 -> 0.000 | E25: =+'Operating Lines'!G16 -> 0.400 | G25: x is set to xB (Copied from page Operating Lines).
B26: b = | C26: =+'Operating Lines'!E17 -> 0.400 | D26: =+'Operating Lines'!F17 -> 0.200 | E26: =+'Operating Lines'!G17 -> 0.200 | G26: yE = pE xEgE/P
G27: T is found by iteration of BP
A28: BOL | B28: m = | C28: =+'Operating Lines'!E19 -> 3.875 | D28: =+'Operating Lines'!F19 -> 0.010 | E28: =+'Operating Lines'!G19 -> 0.000 | G28: pB and pT are the partial pressures at T using Antoine's Eq.
B29: b = | C29: =+'Operating Lines'!E20 -> -0.039 | D29: =+'Operating Lines'!F20 -> 0.090 | E29: =+'Operating Lines'!G20 -> 0.310 | G29: 4) Run Solver on this page to make the BP criteria equal to zero. The cell contains
G30: P - pE xE gE - pW (1-xE) gW.
G31: 5) Check graph on page MT (McCabe-Thiele) to see if correct feed location chosen.
G32: If not correct, copy correct BOL/TOL to the x value.
G33: 6) If you change pressure, you will need to adjust T axis on TXY VLE.

Sheet Lewis DIY
A1: Open Steam Distillation of Ethanol/Water
H2: P (mm Hg) = | I2: 760 | K2: Antoine Constants
A3: x | B3: y | C3: T | D3: Wilson Equation | G3: pB | H3: pT | I3: BP | L3: A | M3: B | N3: C | O3: D
A4: (mol B/mol) | B4: (mol B/mol) | C4: (oC) | D4: F | E4: gE | F4: gW | G4: (mm Hg) | H4: (mm Hg) | I4: (mm Hg) | K4: Ethanol | L4: 8.112 | M4: 1592.864 | N4: 226.184 | O4: 0.2002
K5: Water | L5: 7.967 | M5: 1668.210 | N5: 228.000 | O5: 0.8156
K8: Equilibrium Calculations/Leaving Streams
K9: Operating Line Calculations/Passing Streams
D21: x | E21: y
A22: TOL | B22: m = | C22: =+'Operating Lines'!E13 -> 0.667 | D22: =+'Operating Lines'!F13 -> 0.750 | E22: =+'Operating Lines'!G13 -> 0.750
B23: b = | C23: =+'Operating Lines'!E14 -> 0.250 | D23: =+'Operating Lines'!F14 -> 0.090 | E23: =+'Operating Lines'!G14 -> 0.310
A25: Feed | B25: m = | C25: =+'Operating Lines'!E16 -> -1.000 | D25: =+'Operating Lines'!F16 -> 0.000 | E25: =+'Operating Lines'!G16 -> 0.400
B26: b = | C26: =+'Operating Lines'!E17 -> 0.400 | D26: =+'Operating Lines'!F17 -> 0.200 | E26: =+'Operating Lines'!G17 -> 0.200
A28: BOL | B28: m = | C28: =+'Operating Lines'!E19 -> 3.875 | D28: =+'Operating Lines'!F19 -> 0.010 | E28: =+'Operating Lines'!G19 -> 0.000
B29: b = | C29: =+'Operating Lines'!E20 -> -0.039 | D29: =+'Operating Lines'!F20 -> 0.090 | E29: =+'Operating Lines'!G20 -> 0.310

Sheet VLE
A1: Ethanol-Water VLE
H2: P (mm Hg) = | I2: 760 | K2: Antoine Constants
A3: x | B3: y | C3: T | D3: Wilson Equation | G3: pB | H3: pT | I3: BP | L3: A | M3: B | N3: C | O3: D
A4: (mol B/mol) | B4: (mol B/mol) | C4: (oC) | D4: F | E4: gE | F4: gW | G4: (mm Hg) | H4: (mm Hg) | I4: (mm Hg) | K4: Ethanol | L4: 8.112 | M4: 1592.864 | N4: 226.184 | O4: 0.2002
A5: 0.00 | B5: =+A5*G5*E5/760 -> 0.000 | C5: 100.0 | D5: =+$O$4/(A5+(1-A5)*$O$4)-$O$5/((1-A5)+A5*$O$5) -> 0.1844 | E5: =+EXP(-LN(A5+$O$4*(1-A5))+(1-A5)*D5) -> 6.006 | F5: =+EXP(-LN((1-A5)+$O$5*A5)-A5*D5) -> 1.000 | G5: =10^($L$4-$M$4/(C5+$N$4)) -> 1694 | H5: =10^($L$5-$M$5/($N$5+C5)) -> 760 | I5: =$I$2-A5*G5*E5-(1-A5)*H5*F5 -> 0.00000 | K5: Water | L5: 7.967 | M5: 1668.210 | N5: 228.000 | O5: 0.8156
A6: 0.01 | B6: =+A6*G6*E6/760 -> 0.111 | C6: 97.0 | D6: =+$O$4/(A6+(1-A6)*$O$4)-$O$5/((1-A6)+A6*$O$5) -> 0.1444 | E6: =+EXP(-LN(A6+$O$4*(1-A6))+(1-A6)*D6) -> 5.541 | F6: =+EXP(-LN((1-A6)+$O$5*A6)-A6*D6) -> 1.000 | G6: =10^($L$4-$M$4/(C6+$N$4)) -> 1526 | H6: =10^($L$5-$M$5/($N$5+C6)) -> 682 | I6: =$I$2-A6*G6*E6-(1-A6)*H6*F6 -> 0.00000
A7: 0.02 | B7: 0.190 | C7: 94.7 | D7: 0.1074 | E7: 5.138 | F7: =+EXP(-LN((1-A7)+$O$5*A7)-A7*D7) -> 1.002 | G7: =10^($L$4-$M$4/(C7+$N$4)) -> 1407 | H7: =10^($L$5-$M$5/($N$5+C7)) -> 627 | I7: 0.00000 | K7: Instructions: | L7: 1) Select the pressure. Most examples are for 1 atm = 760 mm Hg.
A8: 0.03 | B8: 0.249 | C8: 92.9 | D8: 0.0728 | E8: 4.786 | F8: 1.003 | G8: 1319 | H8: 586 | I8: 0.00000 | L8: 2) Run Solver to make the BP criteria equal to zero. The cell contains
A9: 0.04 | B9: 0.295 | C9: 91.4 | D9: 0.0405 | E9: 4.477 | F9: 1.006 | G9: 1251 | H9: 555 | I9: 0.00000 | L9: P - pE xE gE - pW (1-xE) gW.
A10: 0.05 | B10: 0.331 | C10: 90.2 | D10: 0.0103 | E10: 4.204 | F10: 1.009 | G10: 1197 | H10: 530 | I10: 0.00000 | L10: 3) The following are set and don't need to be changed:
A11: 0.06 | B11: 0.361 | C11: 89.2 | D11: -0.0181 | E11: 3.961 | F11: 1.012 | G11: 1154 | H11: 511 | I11: 0.00000 | L11: x is set from 0 to 1 by 0.01.
A12: 0.07 | B12: 0.385 | C12: 88.4 | D12: -0.0448 | E12: 3.744 | F12: 1.016 | G12: 1118 | H12: 494 | I12: 0.00000 | L12: yE = pE xEgE/P
A13: 0.08 | B13: 0.406 | C13: 87.6 | D13: -0.0700 | E13: 3.549 | F13: 1.021 | G13: 1088 | H13: 480 | I13: 0.00000 | L13: T is found by iteration of BP
A14: 0.09 | B14: 0.424 | C14: 87.0 | D14: -0.0938 | E14: 3.373 | F14: 1.025 | G14: 1062 | H14: 469 | I14: 0.00000 | L14: pB and pT are the partial pressures at T using Antoine's Eq.
A15: 0.10 | B15: 0.440 | C15: 86.4 | D15: -0.1164 | E15: 3.214 | F15: 1.031 | G15: 1040 | H15: 459 | I15: 0.00000 | L15: 4) If you change pressure, you will need to adjust T axis on TXY VLE.
A16: 0.11 | B16: 0.454 | C16: 86.0 | D16: -0.1378 | E16: 3.069 | F16: 1.036 | G16: 1021 | H16: 450 | I16: -0.00000
A17: 0.12 | B17: 0.466 | C17: 85.5 | D17: -0.1581 | E17: 2.938 | F17: 1.042 | G17: 1005 | H17: 442 | I17: 0.00000
A18: 0.13 | B18: 0.477 | C18: 85.1 | D18: -0.1775 | E18: 2.817 | F18: 1.048 | G18: 990 | H18: 436 | I18: 0.00000
A19: 0.14 | B19: 0.487 | C19: 84.8 | D19: -0.1959 | E19: 2.707 | F19: 1.055 | G19: 977 | H19: 430 | I19: 0.00000 | K19: 45o Line
A20: 0.15 | B20: 0.496 | C20: 84.5 | D20: -0.2135 | E20: 2.605 | F20: 1.062 | G20: 965 | H20: 424 | I20: 0.00000 | K20: 0 | L20: 0
A21: 0.16 | B21: 0.504 | C21: 84.2 | D21: -0.2303 | E21: 2.511 | F21: 1.069 | G21: 954 | H21: 419 | I21: -0.00000 | K21: 1 | L21: 1
A22: 0.17 | B22: 0.512 | C22: 83.9 | D22: -0.2465 | E22: 2.424 | F22: 1.077 | G22: 944 | H22: 415 | I22: 0.00000
A23: 0.18 | B23: 0.519 | C23: 83.6 | D23: -0.2619 | E23: 2.344 | F23: 1.084 | G23: 935 | H23: 411 | I23: 0.00000
A24: 0.19 | B24: 0.526 | C24: 83.4 | D24: -0.2767 | E24: 2.269 | F24: 1.092 | G24: 927 | H24: 407 | I24: -0.00000
A25: 0.20 | B25: 0.532 | C25: 83.2 | D25: -0.2910 | E25: 2.200 | F25: 1.100 | G25: 920 | H25: 404 | I25: 0.00000
A26: 0.21 | B26: 0.538 | C26: 83.0 | D26: -0.3047 | E26: 2.135 | F26: 1.109 | G26: 912 | H26: 401 | I26: 0.00000
A27: 0.22 | B27: 0.544 | C27: 82.8 | D27: -0.3179 | E27: 2.075 | F27: 1.118 | G27: 906 | H27: 398 | I27: 0.00000
A28: 0.23 | B28: 0.549 | C28: 82.6 | D28: -0.3306 | E28: 2.018 | F28: 1.127 | G28: 900 | H28: 395 | I28: 0.00000
A29: 0.24 | B29: 0.555 | C29: 82.5 | D29: -0.3429 | E29: 1.965 | F29: 1.136 | G29: 894 | H29: 392 | I29: 0.00000
A30: 0.25 | B30: 0.560 | C30: 82.3 | D30: -0.3547 | E30: 1.915 | F30: 1.146 | G30: 888 | H30: 390 | I30: 0.00000
A31: 0.26 | B31: 0.564 | C31: 82.1 | D31: -0.3662 | E31: 1.868 | F31: 1.155 | G31: 883 | H31: 387 | I31: 0.00000
A32: 0.27 | B32: 0.569 | C32: 82.0 | D32: -0.3773 | E32: 1.824 | F32: 1.165 | G32: 878 | H32: 385 | I32: 0.00000
A33: 0.28 | B33: 0.574 | C33: 81.9 | D33: -0.3880 | E33: 1.783 | F33: 1.175 | G33: 873 | H33: 383 | I33: 0.00000
A34: 0.29 | B34: 0.578 | C34: 81.7 | D34: -0.3984 | E34: 1.744 | F34: 1.186 | G34: 869 | H34: 381 | I34: 0.00000
A35: 0.30 | B35: 0.583 | C35: 81.6 | D35: -0.4085 | E35: 1.707 | F35: 1.197 | G35: 865 | H35: 379 | I35: 0.00000
A36: 0.31 | B36: 0.587 | C36: 81.5 | D36: -0.4183 | E36: 1.672 | F36: 1.207 | G36: 860 | H36: 377 | I36: 0.00000
A37: 0.32 | B37: 0.591 | C37: 81.3 | D37: -0.4278 | E37: 1.639 | F37: 1.219 | G37: 856 | H37: 375 | I37: 0.00000
A38: 0.33 | B38: 0.595 | C38: 81.2 | D38: -0.4371 | E38: 1.608 | F38: 1.230 | G38: 853 | H38: 373 | I38: 0.00000
A39: 0.34 | B39: 0.599 | C39: 81.1 | D39: -0.4461 | E39: 1.578 | F39: 1.242 | G39: 849 | H39: 372 | I39: 0.00000
A40: 0.35 | B40: 0.603 | C40: 81.0 | D40: -0.4549 | E40: 1.550 | F40: 1.253 | G40: 845 | H40: 370 | I40: 0.00000
A41: 0.36 | B41: 0.607 | C41: 80.9 | D41: -0.4635 | E41: 1.523 | F41: 1.266 | G41: 842 | H41: 369 | I41: 0.00000
A42: 0.37 | B42: 0.611 | C42: 80.8 | D42: -0.4718 | E42: 1.497 | F42: 1.278 | G42: 839 | H42: 367 | I42: 0.00000
A43: 0.38 | B43: 0.615 | C43: 80.7 | D43: -0.4799 | E43: 1.473 | F43: 1.290 | G43: 835 | H43: 366 | I43: 0.00000
A44: 0.39 | B44: 0.619 | C44: 80.6 | D44: -0.4879 | E44: 1.450 | F44: 1.303 | G44: 832 | H44: 364 | I44: 0.00000
A45: 0.40 | B45: 0.623 | C45: 80.5 | D45: -0.4956 | E45: 1.428 | F45: 1.316 | G45: 829 | H45: 363 | I45: 0.00000
A46: 0.41 | B46: 0.627 | C46: 80.4 | D46: -0.5032 | E46: 1.407 | F46: 1.330 | G46: 826 | H46: 361 | I46: 0.00000
A47: 0.42 | B47: 0.631 | C47: 80.3 | D47: -0.5106 | E47: 1.387 | F47: 1.343 | G47: 823 | H47: 360 | I47: 0.00000
A48: 0.43 | B48: 0.635 | C48: 80.2 | D48: -0.5179 | E48: 1.368 | F48: 1.357 | G48: 820 | H48: 359 | I48: 0.00000
A49: 0.44 | B49: 0.639 | C49: 80.2 | D49: -0.5250 | E49: 1.350 | F49: 1.371 | G49: 818 | H49: 357 | I49: 0.00000
A50: 0.45 | B50: 0.643 | C50: 80.1 | D50: -0.5320 | E50: 1.332 | F50: 1.385 | G50: 815 | H50: 356 | I50: 0.00000
A51: 0.46 | B51: 0.647 | C51: 80.0 | D51: -0.5388 | E51: 1.316 | F51: 1.400 | G51: 812 | H51: 355 | I51: 0.00000
A52: 0.47 | B52: 0.651 | C52: 79.9 | D52: -0.5455 | E52: 1.300 | F52: 1.415 | G52: 810 | H52: 354 | I52: 0.00000
A53: 0.48 | B53: 0.655 | C53: 79.8 | D53: -0.5521 | E53: 1.285 | F53: 1.430 | G53: 807 | H53: 353 | I53: 0.00000
A54: 0.49 | B54: 0.659 | C54: 79.7 | D54: -0.5585 | E54: 1.270 | F54: 1.445 | G54: 805 | H54: 352 | I54: 0.00000
A55: 0.50 | B55: 0.663 | C55: 79.7 | D55: -0.5648 | E55: 1.256 | F55: 1.461 | G55: 802 | H55: 351 | I55: 0.00000
A56: 0.51 | B56: 0.667 | C56: 79.6 | D56: -0.5710 | E56: 1.243 | F56: 1.477 | G56: 800 | H56: 349 | I56: 0.00000
A57: 0.52 | B57: 0.671 | C57: 79.5 | D57: -0.5771 | E57: 1.230 | F57: 1.493 | G57: 798 | H57: 348 | I57: 0.00000
A58: 0.53 | B58: 0.676 | C58: 79.5 | D58: -0.5832 | E58: 1.218 | F58: 1.510 | G58: 795 | H58: 347 | I58: -0.00000
A59: 0.54 | B59: 0.680 | C59: 79.4 | D59: -0.5891 | E59: 1.207 | F59: 1.526 | G59: 793 | H59: 346 | I59: 0.00000
A60: 0.55 | B60: 0.684 | C60: 79.3 | D60: -0.5949 | E60: 1.195 | F60: 1.544 | G60: 791 | H60: 345 | I60: 0.00000
A61: 0.56 | B61: 0.689 | C61: 79.2 | D61: -0.6006 | E61: 1.185 | F61: 1.561 | G61: 789 | H61: 345 | I61: 0.00000
A62: 0.57 | B62: 0.693 | C62: 79.2 | D62: -0.6062 | E62: 1.174 | F62: 1.579 | G62: 787 | H62: 344 | I62: 0.00000
A63: 0.58 | B63: 0.698 | C63: 79.1 | D63: -0.6118 | E63: 1.165 | F63: 1.597 | G63: 785 | H63: 343 | I63: -0.00000
A64: 0.59 | B64: 0.702 | C64: 79.1 | D64: -0.6173 | E64: 1.155 | F64: 1.615 | G64: 783 | H64: 342 | I64: 0.00000
A65: 0.60 | B65: 0.707 | C65: 79.0 | D65: -0.6227 | E65: 1.146 | F65: 1.634 | G65: 781 | H65: 341 | I65: 0.00000
A66: 0.61 | B66: 0.712 | C66: 78.9 | D66: -0.6280 | E66: 1.138 | F66: 1.653 | G66: 779 | H66: 340 | I66: 0.00000
A67: 0.62 | B67: 0.716 | C67: 78.9 | D67: -0.6333 | E67: 1.129 | F67: 1.672 | G67: 777 | H67: 339 | I67: 0.00000
A68: 0.63 | B68: 0.721 | C68: 78.8 | D68: -0.6385 | E68: 1.121 | F68: 1.692 | G68: 776 | H68: 339 | I68: -0.00000
A69: 0.64 | B69: 0.726 | C69: 78.8 | D69: -0.6436 | E69: 1.114 | F69: 1.712 | G69: 774 | H69: 338 | I69: 0.00000
A70: 0.65 | B70: =+A70*G70*E70/760 -> 0.731 | C70: 78.7 | D70: =+$O$4/(A70+(1-A70)*$O$4)-$O$5/((1-A70)+A70*$O$5) -> -0.6486 | E70: =+EXP(-LN(A70+$O$4*(1-A70))+(1-A70)*D70) -> 1.107 | F70: 1.732 | G70: 772 | H70: 337 | I70: =$I$2-A70*G70*E70-(1-A70)*H70*F70 -> -0.00000
A71: 0.66 | B71: 0.736 | C71: 78.7 | D71: -0.6536 | E71: 1.100 | F71: =+EXP(-LN((1-A71)+$O$5*A71)-A71*D71) -> 1.753 | G71: =10^($L$4-$M$4/(C71+$N$4)) -> 771 | H71: =10^($L$5-$M$5/($N$5+C71)) -> 336 | I71: 0.00000
A72: 0.67 | B72: 0.741 | C72: 78.6 | D72: -0.6586 | E72: 1.093 | F72: 1.774 | G72: 769 | H72: 336 | I72: 0.00000
A73: 0.68 | B73: 0.747 | C73: 78.6 | D73: -0.6635 | E73: 1.087 | F73: 1.795 | G73: 768 | H73: 335 | I73: 0.00000
A74: 0.69 | B74: 0.752 | C74: 78.5 | D74: -0.6683 | E74: 1.081 | F74: 1.817 | G74: 766 | H74: 334 | I74: 0.00000
A75: 0.70 | B75: 0.758 | C75: 78.5 | D75: -0.6731 | E75: 1.075 | F75: 1.839 | G75: 765 | H75: 334 | I75: 0.00000
A76: 0.71 | B76: 0.763 | C76: 78.4 | D76: -0.6778 | E76: 1.070 | F76: 1.862 | G76: 764 | H76: 333 | I76: 0.00000
A77: 0.72 | B77: 0.769 | C77: 78.4 | D77: -0.6825 | E77: 1.064 | F77: 1.885 | G77: 763 | H77: 333 | I77: 0.00000
A78: 0.73 | B78: 0.775 | C78: 78.3 | D78: -0.6871 | E78: 1.059 | F78: 1.908 | G78: 761 | H78: 332 | I78: -0.00000
A79: 0.74 | B79: 0.781 | C79: 78.3 | D79: -0.6917 | E79: 1.055 | F79: 1.932 | G79: 760 | H79: 332 | I79: 0.00000
A80: 0.75 | B80: 0.787 | C80: 78.3 | D80: -0.6963 | E80: 1.050 | F80: 1.956 | G80: 759 | H80: 331 | I80: 0.00000
A81: 0.76 | B81: 0.793 | C81: 78.2 | D81: -0.7008 | E81: 1.046 | F81: 1.981 | G81: 758 | H81: 331 | I81: 0.00000
A82: 0.77 | B82: 0.799 | C82: 78.2 | D82: -0.7052 | E82: 1.042 | F82: 2.006 | G82: 757 | H82: 330 | I82: 0.00000
A83: 0.78 | B83: 0.806 | C83: 78.2 | D83: -0.7097 | E83: 1.038 | F83: 2.032 | G83: 757 | H83: 330 | I83: 0.00000
A84: 0.79 | B84: 0.813 | C84: 78.2 | D84: -0.7140 | E84: 1.034 | F84: 2.058 | G84: 756 | H84: 330 | I84: 0.00000
A85: 0.80 | B85: 0.819 | C85: 78.1 | D85: -0.7184 | E85: 1.031 | F85: 2.084 | G85: 755 | H85: 329 | I85: 0.00000
A86: 0.81 | B86: 0.826 | C86: 78.1 | D86: -0.7227 | E86: 1.028 | F86: 2.111 | G86: 754 | H86: 329 | I86: 0.00000
A87: 0.82 | B87: 0.834 | C87: 78.1 | D87: -0.7270 | E87: 1.025 | F87: 2.138 | G87: 754 | H87: 329 | I87: -0.00000
A88: 0.83 | B88: 0.841 | C88: 78.1 | D88: -0.7313 | E88: 1.022 | F88: 2.166 | G88: 753 | H88: 328 | I88: 0.00000
A89: 0.84 | B89: 0.848 | C89: 78.1 | D89: -0.7355 | E89: 1.019 | F89: 2.195 | G89: 753 | H89: 328 | I89: 0.00000
A90: 0.85 | B90: 0.856 | C90: 78.1 | D90: -0.7397 | E90: 1.017 | F90: 2.224 | G90: 753 | H90: 328 | I90: -0.00000
A91: 0.86 | B91: 0.864 | C91: 78.0 | D91: -0.7439 | E91: 1.015 | F91: 2.253 | G91: 752 | H91: 328 | I91: -0.00000
A92: 0.87 | B92: 0.872 | C92: 78.0 | D92: -0.7480 | E92: 1.013 | F92: 2.283 | G92: 752 | H92: 328 | I92: -0.00000
A93: 0.88 | B93: 0.880 | C93: 78.0 | D93: -0.7521 | E93: 1.011 | F93: 2.314 | G93: 752 | H93: 328 | I93: -0.00000
A94: 0.89 | B94: 0.889 | C94: 78.0 | D94: -0.7562 | E94: 1.009 | F94: 2.345 | G94: 752 | H94: 328 | I94: -0.00000
A95: 0.90 | B95: 0.897 | C95: 78.0 | D95: -0.7603 | E95: 1.007 | F95: 2.377 | G95: 752 | H95: 328 | I95: -0.00000
A96: 0.91 | B96: 0.906 | C96: 78.0 | D96: -0.7643 | E96: 1.006 | F96: 2.409 | G96: 753 | H96: 328 | I96: 0.00000
A97: 0.92 | B97: 0.916 | C97: 78.1 | D97: -0.7683 | E97: 1.005 | F97: 2.442 | G97: 753 | H97: 328 | I97: -0.00000
A98: 0.93 | B98: 0.925 | C98: 78.1 | D98: -0.7723 | E98: 1.004 | F98: 2.475 | G98: 753 | H98: 328 | I98: -0.00000
A99: 0.94 | B99: 0.935 | C99: 78.1 | D99: -0.7763 | E99: 1.003 | F99: 2.509 | G99: 754 | H99: 329 | I99: 0.00000
A100: 0.95 | B100: 0.945 | C100: 78.1 | D100: -0.7803 | E100: 1.002 | F100: 2.544 | G100: 755 | H100: 329 | I100: 0.00000
A101: 0.96 | B101: 0.955 | C101: 78.1 | D101: -0.7842 | E101: 1.001 | F101: 2.580 | G101: 755 | H101: 329 | I101: 0.00000
A102: 0.97 | B102: 0.966 | C102: 78.2 | D102: -0.7881 | E102: 1.001 | F102: 2.616 | G102: 756 | H102: 330 | I102: 0.00000
A103: 0.98 | B103: 0.977 | C103: 78.2 | D103: -0.7920 | E103: 1.000 | F103: 2.652 | G103: 757 | H103: 330 | I103: -0.00000
A104: 0.99 | B104: 0.988 | C104: 78.3 | D104: -0.7959 | E104: 1.000 | F104: 2.690 | G104: 759 | H104: 331 | I104: -0.00000
A105: 1.00 | B105: 1.000 | C105: 78.3 | D105: -0.7998 | E105: 1.000 | F105: 2.728 | G105: 760 | H105: 331 | I105: -0.00000
